fUSD/lending_fUSD_20240331
["ID","MTS","AMOUNT","RATE_DAILY","PERIOD"]
[321077729,1711883442901,-2238.05,0.00041369,4]
[321077730,1711883442910,-663.74,0.00041369,4]
[321077731,1711883442920,-2433.18,0.00041369,4]
[321077732,1711883442929,-500.0,0.00041369,4]
[321077733,1711883442938,-18780.41,0.00041369,4]
[321077734,1711883442947,-502.77,0.00041369,4]
[321077735,1711883442956,-1950.88,0.00041369,4]
[321077737,1711883442965,-500.0,0.00041369,4]
[321077739,1711883442975,-500.0,0.00041369,4]
[321077740,1711883442984,-529.6675,0.00041369,4]
[321077741,1711883442994,-608.39,0.00041369,4]
[321077742,1711883443003,-500.0,0.00041369,4]
[321077743,1711883443013,-16662.45,0.00041369,4]
[321077744,1711883443022,-1551.3,0.00041369,4]
[321077745,1711883443032,-682.79,0.00041369,4]
[321077746,1711883443041,-500.0,0.00041369,4]
[321077747,1711883443050,-1525.8387605,0.00041369,4]
[321077748,1711883443062,-2768.2412395,0.00041369,4]
[321077749,1711883443072,-935.22,0.00041369,4]
[321077750,1711883443081,-1935.59,0.00041369,4]
[321077751,1711883443090,-1000.0,0.0004137,14]
[321077752,1711883443099,-1000.0,0.00041438,14]
[321077753,1711883443108,-983.19788479,0.00041449,2]
[321077754,1711883443118,-1000.0,0.00041502,3]
[321077756,1711883443127,-1000.0,0.00041507,14]
[321077757,1711883443136,-153.53330096,0.00041543,12]
[321077758,1711883443146,-1000.0,0.00041575,14]
[321077759,1711883443156,-4097.74553254,0.000416,15]
[321077760,1711883443166,-983.19788479,0.000416,2]
[321077761,1711883443176,-153.92870743,0.00041633,30]
[321077762,1711883443185,-500.0,0.00041642,8]
[321077763,1711883443194,-500.0,0.00041643,4]
[321077764,1711883443203,-593.83170999,0.00041643,4]
[321077765,1711883443212,-500.0,0.00041643,4]
[321077766,1711883443223,-500.0,0.00041643,4]
[321077767,1711883443233,-679.43,0.00041643,2]
[321077768,1711883443242,-500.0,0.00041643,4]
[321077769,1711883443251,-500.0,0.00041643,4]
[321077770,1711883443261,-500.0,0.00041643,4]
[321077771,1711883443271,-314.3460151,0.00041643,4]
[321077772,1711883443280,-500.0,0.00041643,4]
[321077774,1711883443289,-500.0,0.00041643,4]
[321077775,1711883443298,-150.0,0.00041643,4]
[321077776,1711883443307,-544.77895428,0.00041643,4]
[321077777,1711883443317,-555.12,0.00041643,4]
[321077778,1711883443326,-361.57816564,0.00041643,4]
[321077779,1711883443335,-500.0,0.00041643,2]
[321077780,1711883443344,-500.0,0.00041643,4]
[321077781,1711883443353,-500.0,0.00041643,4]
[321077782,1711883443363,-549.48,0.00041643,4]
[321077783,1711883443373,-549.94808756,0.00041643,4]
[321077784,1711883443382,-1070.48,0.00041643,4]
[321077785,1711883443391,-500.0,0.00041643,4]
[321077786,1711883443403,-554.95247949,0.00041643,7]
[321077787,1711883443419,-479.53597661,0.00041643,7]
[321077788,1711883443429,-500.0,0.00041643,4]
[321077789,1711883443439,-500.0,0.00041643,4]
[321077790,1711883443451,-350.14217448,0.00041643,4]
[321077791,1711883443461,-500.0,0.00041643,4]
[321077792,1711883443470,-8639.74,0.00041643,4]
[321077793,1711883443481,-500.0,0.00041643,4]
[321077794,1711883443490,-500.0,0.00041643,4]
[321077795,1711883443499,-393.76553299,0.00041643,4]
[321077796,1711883443509,-500.0,0.00041643,4]
[321077797,1711883443518,-500.0,0.00041643,4]
[321077798,1711883443527,-1862.31,0.00041643,4]
[321077799,1711883443537,-500.0,0.00041643,4]
[321077800,1711883443546,-500.0,0.00041643,4]
[321077801,1711883443555,-507.34,0.00041643,4]
[321077802,1711883443565,-2605.92,0.00041643,4]
[321077803,1711883443574,-500.0,0.00041643,4]
[321077804,1711883443583,-9670.17,0.00041643,4]
[321077805,1711883443591,-1122.17,0.00041643,4]
[321077806,1711883443600,-500.0,0.00041643,4]
[321077807,1711883443610,-500.0,0.00041643,4]
[321077808,1711883443619,-1712.16,0.00041643,4]
[321077809,1711883443627,-500.0,0.00041643,4]
[321077810,1711883443636,-2748.38,0.00041643,4]
[321077811,1711883443645,-500.0,0.00041643,4]
[321077812,1711883443654,-500.0,0.00041643,4]
[321077813,1711883443663,-500.0,0.00041643,4]
[321077814,1711883443672,-500.0,0.00041643,4]
[321077815,1711883443681,-500.0,0.00041643,4]
[321077816,1711883443690,-4301.58,0.00041643,4]
[321077817,1711883443699,-531.6,0.00041643,4]
[321077818,1711883443707,-500.0,0.00041643,4]
[321077819,1711883443716,-500.0,0.00041643,4]
[321077820,1711883443725,-9908.7,0.00041643,4]
[321077821,1711883443734,-3656.45,0.00041643,4]
[321077822,1711883443743,-707.92,0.00041643,4]
[321077823,1711883443752,-2921.85,0.00041643,4]
[321077824,1711883443761,-500.0,0.00041643,4]
[321077825,1711883443770,-500.0,0.00041643,4]
[321077826,1711883443779,-164.38691685,0.00041643,4]
[321077827,1711883443788,-3783.97,0.00041643,4]
[321077828,1711883443797,-500.0,0.00041643,4]
[321077829,1711883443806,-2102.16,0.00041643,4]
[321077830,1711883443816,-15160.16,0.00041643,4]
[321077831,1711883443825,-2273.33,0.00041643,4]
[321077832,1711883443834,-1657.86,0.00041643,4]
[321077833,1711883443848,-500.0,0.00041643,4]
[321077834,1711883443861,-500.0,0.00041643,4]
[321077835,1711883443873,-3435.73,0.00041643,4]
[321077836,1711883443885,-500.0,0.00041643,4]
[321077837,1711883443898,-500.0,0.00041643,4]
[321077838,1711883443910,-500.0,0.00041643,4]
[321077839,1711883443920,-500.0,0.00041643,4]
[321077840,1711883443930,-3547.44,0.00041643,4]
[321077841,1711883443943,-2803.49,0.00041643,4]
[321077842,1711883443954,-500.0,0.00041643,4]
[321077843,1711883443966,-500.0,0.00041643,4]
[321077844,1711883443978,-500.0,0.00041643,4]
[321077845,1711883443989,-4194.52,0.00041643,4]
[321077846,1711883444002,-9215.25,0.00041643,4]
[321077847,1711883444014,-500.0,0.00041643,4]
[321077848,1711883444026,-500.0,0.00041643,4]
[321077849,1711883444038,-2011.87,0.00041643,4]
[321077850,1711883444048,-500.0,0.00041643,4]
[321077851,1711883444058,-500.0,0.00041643,4]
[321077852,1711883444070,-4752.87,0.00041643,4]
[321077853,1711883444082,-500.0,0.00041643,4]
[321077854,1711883444093,-2598.4,0.00041643,4]
[321077855,1711883444106,-2126.31,0.00041643,4]
[321077856,1711883444117,-11877.83,0.00041643,4]
[321077857,1711883444129,-518.02,0.00041643,4]
[321077858,1711883444141,-1937.78,0.00041643,4]
[321077859,1711883444154,-10453.94,0.00041643,4]
[321077860,1711883444166,-1076.45,0.00041643,4]
[321077861,1711883444176,-500.0,0.00041643,4]
[321077862,1711883444187,-500.0,0.00041643,4]
[321077863,1711883444198,-500.0,0.00041643,4]
[321077864,1711883444212,-2336.79,0.00041643,4]
[321077865,1711883444224,-552.15,0.00041643,4]
[321077866,1711883444234,-1920.41,0.00041643,4]
[321077867,1711883444247,-2290.08,0.00041643,4]
[321077868,1711883444259,-1182.09,0.00041643,4]
[321077869,1711883444271,-3941.13,0.00041643,4]
[321077870,1711883444282,-2482.25,0.00041643,4]
[321077871,1711883444294,-16241.59,0.00041643,4]
[321077872,1711883444304,-3222.61,0.00041643,4]
[321077873,1711883444315,-500.0,0.00041643,4]
[321077874,1711883444327,-500.0,0.00041643,4]
[321077875,1711883444339,-535.83,0.00041643,4]
[321077876,1711883444350,-500.0,0.00041643,4]
[321077877,1711883444361,-2590.66,0.00041643,4]
[321077878,1711883444373,-500.0,0.00041643,4]
[321077879,1711883444386,-609.57,0.00041643,4]
[321077880,1711883444400,-3509.53,0.00041643,4]
[321077881,1711883444414,-500.0,0.00041643,4]
[321077882,1711883444426,-5528.21,0.00041643,4]
[321077883,1711883444437,-2238.05,0.00041643,4]
[321077884,1711883444448,-663.74,0.00041643,4]
[321077885,1711883444458,-2433.18,0.00041643,4]
[321077886,1711883444469,-500.0,0.00041643,4]
[321077887,1711883444479,-18780.41,0.00041643,4]
[321077888,1711883444491,-502.77,0.00041643,4]
[321077889,1711883444503,-1950.88,0.00041643,4]
[321077890,1711883444514,-500.0,0.00041643,4]
[321077891,1711883444525,-500.0,0.00041643,4]
[321077892,1711883444536,-608.39,0.00041643,4]
[321077893,1711883444548,-500.0,0.00041643,4]
[321077894,1711883444560,-16662.45,0.00041643,4]
[321077895,1711883444570,-1551.3,0.00041643,4]
[321077896,1711883444580,-682.79,0.00041643,4]
[321077897,1711883444591,-500.0,0.00041643,4]
[321077898,1711883444602,-4294.08,0.00041643,4]
[321077899,1711883444613,-935.22,0.00041643,4]
[321077900,1711883444623,-1935.59,0.00041643,4]
[321077901,1711883444634,-1000.0,0.00041644,14]
[321077902,1711883444646,-368.0,0.0004168,2]
[321077903,1711883444656,-1364.61714362,0.00041693,4]
[321077904,1711883444669,-2500.0,0.00041699,4]
[321077905,1711883444680,-2500.0,0.00041699,4]
[321077906,1711883444690,-2500.0,0.00041699,4]
[321077907,1711883444701,-1119.80582123,0.00041699,4]
[321077908,1711883444712,-500.0,0.00041699,8]
[321077909,1711883444722,-500.0,0.00041699,8]
[321077910,1711883444733,-500.0,0.000417,2]
[321077911,1711883444744,-473.0,0.000417,17]
[321077912,1711883444755,-248594.04885757,0.000417,7]
[321077913,1711883444765,-151.0,0.000417,14]
[321077914,1711883444776,-155.618377,0.000417,14]
[321077915,1711883444786,-151.0,0.000417,14]
[321077916,1711883444797,-151.0,0.000417,14]
[321077917,1711883444807,-200.922821,0.000417,14]
[321077918,1711883444819,-151.0,0.000417,14]
[321077919,1711883444829,-151.0,0.000417,14]
[321077920,1711883444839,-189.249004,0.000417,14]
[321077921,1711883444849,-151.0,0.000417,14]
[321077922,1711883444859,-151.0,0.000417,14]
[321077923,1711883444869,-151.0,0.000417,14]
[321077924,1711883444880,-151.0,0.000417,14]
[321077925,1711883444891,-151.0,0.000417,14]
[321077926,1711883444901,-151.0,0.000417,14]
[321077927,1711883444912,-151.0,0.000417,14]
[321077928,1711883444922,-158.875817,0.000417,14]
[321077929,1711883444933,-151.0,0.000417,14]
[321077930,1711883444944,-151.0,0.000417,14]
[321077931,1711883444954,-205.868362,0.000417,14]
[321077932,1711883444964,-151.0,0.000417,14]
[321077933,1711883444975,-151.0,0.000417,14]
[321077934,1711883444986,-152.864784,0.000417,14]
[321077935,1711883444997,-152.241133,0.000417,14]
[321077936,1711883445008,-151.0,0.000417,14]
[321077937,1711883445019,-151.0,0.000417,14]
[321077938,1711883445030,-151.0,0.000417,14]
[321077939,1711883445041,-151.0,0.000417,14]
[321077940,1711883445052,-151.0,0.000417,14]
[321077941,1711883445063,-151.0,0.000417,14]
[321077942,1711883445074,-151.0,0.000417,14]
[321077943,1711883445085,-151.0,0.000417,14]
[321077944,1711883445096,-151.0,0.000417,14]
[321077945,1711883445107,-156.315919,0.000417,14]
[321077946,1711883445119,-151.0,0.000417,14]
[321077947,1711883445131,-151.0,0.000417,14]
[321077948,1711883445142,-151.0,0.000417,14]
[321077949,1711883445154,-151.0,0.000417,14]
[321077950,1711883445166,-151.0,0.000417,14]
[321077951,1711883445176,-151.0,0.000417,14]
[321077952,1711883445187,-151.0,0.000417,14]
[321077953,1711883445198,-151.0,0.000417,14]
[321077954,1711883445209,-151.0,0.000417,14]
[321077955,1711883445221,-151.0,0.000417,14]
[321077956,1711883445232,-151.0,0.000417,14]
[321077957,1711883445242,-151.0,0.000417,14]
[321077958,1711883445253,-254.816134,0.000417,14]
[321077959,1711883445264,-151.0,0.000417,14]
[321077960,1711883445276,-152.061719,0.000417,14]
[321077961,1711883445286,-362.22641692,0.000417,2]
[321077962,1711883445297,-295.41221015,0.000417,2]
[321077963,1711883445308,-4865.54805737,0.000417,4]
[321077964,1711883445319,-2466.02667799,0.000417,4]
[321077965,1711883445329,-2201.31933089,0.000417,4]
[321077966,1711883445339,-150.0,0.000417,34]
[321077967,1711883445350,-947.0,0.000417,17]
[321077968,1711883445361,-500.0,0.000417,8]
[321077969,1711883445371,-500.0,0.000417,8]
[321077970,1711883445382,-500.0,0.000417,8]
[321077971,1711883445392,-500.0,0.000417,8]
[321077972,1711883445403,-500.0,0.000417,8]
[321077973,1711883445415,-500.0,0.000417,8]
[321077974,1711883445425,-500.0,0.000417,8]
[321077975,1711883445435,-500.0,0.000417,8]
[321077976,1711883445447,-500.0,0.000417,8]
[321077977,1711883445457,-481.68257379,0.000417,8]
[321077978,1711883445468,-65267.27809926,0.000417,120]
[321077979,1711883445478,-1000.0,0.00041712,14]
[321077980,1711883445489,-1000.0,0.00041715,2]
[321077981,1711883445500,-151.0,0.00041715,14]
[321077982,1711883445511,-151.0,0.00041715,14]
[321077983,1711883445521,-151.0,0.00041715,14]
[321077984,1711883445532,-151.0,0.00041715,14]
[321077985,1711883445542,-151.0,0.00041715,14]
[321077986,1711883445553,-151.0,0.00041715,14]
[321077987,1711883445564,-2869.5069258,0.00041727,2]
[321077988,1711883445574,-2869.5069258,0.00041729,2]
[321077989,1711883445585,-20987.90558408,0.0004173,2]
[321077990,1711883445596,-760.8434237,0.0004173,2]
[321077991,1711883445606,-1168.69207135,0.0004173,2]
[321077992,1711883445617,-546.78169783,0.0004173,2]
[321077993,1711883445627,-227.79400952,0.00041732,2]
[321077994,1711883445638,-2869.5069258,0.00041732,2]
[321077995,1711883445649,-310.81987138,0.00041734,2]
[321077996,1711883445659,-1168.69207135,0.00041735,2]
[321077997,1711883445669,-227.9623808,0.00041737,2]
[321077998,1711883445679,-760.8434237,0.00041738,2]
[321077999,1711883445690,-676.14164172,0.00041739,2]
[321078000,1711883445700,-760.8434237,0.00041741,2]
[321078001,1711883445711,-1168.69207135,0.00041741,2]
[321078002,1711883445723,-55861.81744741,0.00041742,2]
[321078003,1711883445733,-178.29446418,0.00041742,2]
[321078004,1711883445743,-760.8434237,0.00041743,2]
[321078005,1711883445753,-410.35994302,0.00041743,2]
[321078006,1711883445762,-16029.38516309,0.00041744,2]
[321078007,1711883445771,-227.9623808,0.00041745,2]
[321078008,1711883445780,-227.9623808,0.00041745,2]
[321078009,1711883445789,-16029.38516309,0.00041746,2]
[321078010,1711883445799,-2869.5069258,0.00041747,2]
[321078011,1711883445808,-55861.81744741,0.00041747,2]
[321078012,1711883445817,-676.14164172,0.00041748,2]
[321078013,1711883445828,-2869.5069258,0.00041749,2]
[321078014,1711883445837,-546.78169783,0.00041749,2]
[321078015,1711883445846,-410.35994302,0.0004175,2]
[321078016,1711883445857,-410.35994302,0.00041753,2]
[321078017,1711883445866,-16029.38516309,0.00041753,2]
[321078018,1711883445875,-676.14164172,0.00041754,2]
[321078019,1711883445884,-2869.5069258,0.00041756,2]
[321078020,1711883445893,-55861.81744741,0.00041756,2]
[321078021,1711883445902,-760.8434237,0.00041758,2]
[321078022,1711883445912,-546.78169783,0.0004176,2]
[321078023,1711883445921,-16029.38516309,0.00041761,2]
[321078024,1711883445930,-150.0,0.00041763,60]
[321078025,1711883445940,-178.29446418,0.00041763,2]
[321078026,1711883445949,-1168.69207135,0.00041764,2]
[321078027,1711883445958,-410.35994302,0.00041764,2]
[321078028,1711883445968,-546.78169783,0.00041765,2]
[321078029,1711883445977,-55861.81744741,0.00041765,2]
[321078030,1711883445987,-151.0,0.00041765,14]
[321078031,1711883445996,-151.0,0.00041765,14]
[321078034,1711883446006,-151.0,0.00041765,14]
[321078036,1711883446016,-151.0,0.00041765,14]
[321078038,1711883446025,-151.0,0.00041765,14]
[321078039,1711883446034,-546.78169783,0.00041765,2]
[321078040,1711883446045,-227.9623808,0.00041765,2]
[321078041,1711883446054,-16029.38516309,0.00041766,2]
[321078043,1711883446063,-227.79400952,0.00041766,2]
[321078045,1711883446074,-310.81987138,0.00041766,2]
[321078047,1711883446083,-310.81987138,0.00041767,2]
[321078048,1711883446092,-227.9623808,0.00041768,2]
[321078049,1711883446102,-310.81987138,0.00041771,2]
[321078050,1711883446409,-227.79400952,0.00041773,2]
[321078051,1711883446429,-676.14164172,0.00041774,2]
[321078052,1711883446446,-178.29446418,0.00041774,2]
[321078053,1711883446455,-178.29446418,0.00041774,2]
[321078054,1711883446465,-178.29446418,0.00041775,2]
[321078055,1711883446475,-227.79400952,0.00041775,2]
[321078056,1711883446484,-676.14164172,0.00041779,2]
[321078057,1711883446493,-1000.0,0.00041781,14]
[321078058,1711883446503,-310.81987138,0.00041782,2]
[321078059,1711883446513,-546.78169783,0.00041782,2]
[321078060,1711883446524,-227.79400952,0.00041782,2]
[321078061,1711883446533,-546.78169783,0.00041782,2]
[321078062,1711883446542,-410.35994302,0.00041782,2]
[321078063,1711883446551,-227.9623808,0.00041785,2]
[321078065,1711883446560,-178.29446418,0.00041786,2]
[321078066,1711883446569,-1168.69207135,0.00041789,2]
[321078067,1711883446579,-178.29446418,0.00041789,2]
[321078068,1711883446588,-227.79400952,0.00041793,2]
[321078069,1711883446598,-55861.81744741,0.00041794,2]
[321078070,1711883446607,-16029.38516309,0.00041795,2]
[321078071,1711883446616,-310.81987138,0.00041795,2]
[321078072,1711883446626,-2869.5069258,0.00041796,2]
[321078073,1711883446635,-227.9623808,0.00041797,2]
[321078074,1711883446645,-410.35994302,0.00041797,2]
[321078075,1711883446654,-156.30273,0.00041798,14]
[321078076,1711883446663,-163.079624,0.00041798,14]
[321078077,1711883446672,-160.163448,0.00041798,14]
[321078078,1711883446683,-158.0479,0.00041798,14]
[321078079,1711883446692,-155.147207,0.00041798,14]
[321078080,1711883446701,-151.0,0.00041798,14]
[321078081,1711883446711,-151.0,0.00041798,14]
[321078082,1711883446722,-151.0,0.00041798,14]
[321078083,1711883446733,-151.0,0.00041798,14]
[321078084,1711883446744,-312.466494,0.00041798,14]
[321078085,1711883446753,-174.551947,0.00041798,14]
[321078086,1711883446762,-151.0,0.00041798,14]
[321078087,1711883446771,-312.466494,0.00041798,14]
[321078088,1711883446780,-174.551947,0.00041798,14]
[321078089,1711883446789,-431.925234,0.00041798,14]
[321078090,1711883446798,-431.925234,0.00041798,14]
[321078091,1711883446808,-676.14164172,0.00041798,2]
[321078092,1711883446817,-55861.81744741,0.00041799,2]
[321078093,1711883446827,-151.0,0.00041799,14]
[321078094,1711883446837,-151.0,0.00041799,14]
[321078095,1711883446846,-151.0,0.00041799,14]
[321078096,1711883446855,-151.0,0.00041799,14]
[321078097,1711883446867,-151.0,0.00041799,14]
[321078098,1711883446876,-151.0,0.00041799,14]
[321078099,1711883446885,-154.904299,0.00041799,14]
[321078100,1711883446895,-227.79400952,0.000418,2]
[321078101,1711883446904,-16029.38516309,0.000418,2]
[321078102,1711883446913,-2931.311406,0.000418,34]
[321078103,1711883446923,-153.368925,0.000418,14]
[321078104,1711883446933,-151.0,0.000418,14]
[321078105,1711883446944,-151.0,0.000418,14]
[321078106,1711883446953,-153.513269,0.000418,14]
[321078107,1711883446964,-198.749462,0.000418,14]
[321078108,1711883446974,-2000.0,0.00041805,5]
[321078109,1711883446983,-273.52,0.00041817,15]
[321078110,1711883446993,-1789.88485554,0.00041817,2]
[321078111,1711883447002,-2406.08294226,0.00041817,2]
[321078112,1711883447013,-150.5,0.00041817,15]
[321078113,1711883447022,-150.5,0.00041817,15]
[321078114,1711883447032,-150.5,0.00041827,15]
[321078115,1711883447041,-150.5,0.00041827,15]
[321078116,1711883447051,-150.5,0.00041827,15]
[321078117,1711883447060,-150.5,0.00041837,15]
[321078118,1711883447070,-150.5,0.00041837,15]
[321078119,1711883447079,-1032.49944124,0.0004184,4]
[321078120,1711883447088,-1000.0,0.00041849,14]
[321078121,1711883447098,-1000.0,0.0004185,2]
[321078122,1711883447107,-150.5,0.00041852,15]
[321078123,1711883447117,-310.51658986,0.00041858,2]
[321078124,1711883447126,-150.5,0.00041862,15]
[321078125,1711883447135,-150.5,0.00041872,15]
[321078126,1711883447145,-150.5,0.00041875,15]
[321078127,1711883447155,-160.0,0.00041882,3]
[321078128,1711883447165,-152.21,0.00041882,15]
[321078129,1711883447174,-150.5,0.00041882,15]
[321078130,1711883447183,-160.0,0.00041891,3]
[321078131,1711883447193,-3108.13125578,0.00041891,3]
[321078132,1711883447202,-150.5,0.00041892,15]
[321078133,1711883447212,-151.86,0.00041892,15]
[321078134,1711883447221,-150.5,0.00041892,15]
[321078135,1711883447230,-156.56179884,0.00041898,4]
[321078136,1711883447239,-171.5208439,0.00041898,4]
[321078137,1711883447248,-155.0,0.00041898,4]
[321078138,1711883447259,-206.96908158,0.00041898,4]
[321078139,1711883447268,-294.3946891,0.00041898,4]
[321078140,1711883447278,-531.59643904,0.00041898,7]
[321078141,1711883447287,-695.73105634,0.00041899,4]
[321078142,1711883447296,-160.48472437,0.00041899,4]
[321078143,1711883447306,-157.27631021,0.00041899,4]
[321078144,1711883447315,-290.81290313,0.00041899,4]
[321078145,1711883447324,-125742.68074919,0.000419,3]
[321078146,1711883447333,-442049.58320661,0.000419,2]
[321078147,1711883447343,-268.77,0.000419,74]
[321078148,1711883447352,-473.0,0.000419,17]
[321078149,1711883447361,-947.0,0.000419,17]
[321078150,1711883447370,-151.0,0.000419,14]
[321078151,1711883447379,-151.0,0.000419,14]
[321078152,1711883447389,-194.669293,0.000419,14]
[321078153,1711883447401,-151.0,0.000419,14]
[321078154,1711883447410,-168.327394,0.000419,14]
[321078155,1711883447423,-151.0,0.000419,14]
[321078156,1711883447432,-151.0,0.000419,14]
[321078157,1711883447443,-176.62999,0.000419,14]
[321078158,1711883447452,-151.0,0.000419,14]
[321078159,1711883447461,-312.466494,0.000419,14]
[321078160,1711883447471,-174.551947,0.000419,14]
[321078161,1711883447486,-151.0,0.000419,14]
[321078162,1711883447495,-312.466494,0.000419,14]
[321078163,1711883447506,-174.551947,0.000419,14]
[321078164,1711883447516,-431.925234,0.000419,14]
[321078165,1711883447525,-431.925234,0.000419,14]
[321078166,1711883447534,-960.0,0.000419,28]
[321078167,1711883447543,-151.0,0.000419,14]
[321078168,1711883447553,-151.0,0.000419,14]
[321078169,1711883447562,-151.0,0.000419,14]
[321078170,1711883447571,-151.0,0.000419,14]
[321078171,1711883447581,-338.821322,0.000419,14]
[321078172,1711883447590,-338.821322,0.000419,14]
[321078173,1711883447599,-151.0,0.000419,14]
[321078174,1711883447608,-151.0,0.000419,14]
[321078175,1711883447618,-152.560122,0.000419,14]
[321078176,1711883447627,-151.0,0.000419,14]
[321078177,1711883447636,-152.646763,0.000419,14]
[321078178,1711883447645,-152.749502,0.000419,14]
[321078179,1711883447655,-151.0,0.000419,14]
[321078180,1711883447665,-153.945093,0.000419,14]
[321078181,1711883447674,-151.0,0.000419,14]
[321078182,1711883447683,-152.625338,0.000419,14]
[321078183,1711883447692,-159.308164,0.000419,14]
[321078184,1711883447702,-404.501862,0.000419,14]
[321078185,1711883447714,-404.501862,0.000419,14]
[321078186,1711883447723,-151.0,0.000419,14]
[321078187,1711883447733,-153.343108,0.000419,14]
[321078188,1711883447743,-151.0,0.000419,14]
[321078189,1711883447754,-151.0,0.000419,14]
[321078190,1711883447763,-152.821013,0.000419,14]
[321078191,1711883447772,-525.798803,0.000419,14]
[321078192,1711883447781,-525.798803,0.000419,14]
[321078193,1711883447790,-151.0,0.000419,14]
[321078194,1711883447800,-154.675146,0.000419,14]
[321078195,1711883447809,-152.548115,0.000419,7]
[321078196,1711883447818,-170.535119,0.000419,14]
[321078197,1711883447829,-170.535119,0.000419,14]
[321078198,1711883447838,-151.0,0.000419,14]
[321078199,1711883447848,-182.348349,0.000419,14]
[321078200,1711883447858,-151.0,0.000419,14]
[321078201,1711883447868,-151.0,0.000419,14]
[321078202,1711883447877,-152.030222,0.000419,14]
[321078203,1711883447886,-152.030222,0.000419,14]
[321078204,1711883447897,-249.33041,0.000419,14]
[321078205,1711883447907,-151.0,0.000419,14]
[321078206,1711883447915,-249.33041,0.000419,14]
[321078207,1711883447924,-151.0,0.000419,14]
[321078208,1711883447934,-151.0,0.000419,14]
[321078209,1711883447945,-151.893178,0.000419,14]
[321078210,1711883447954,-1928.129715,0.000419,14]
[321078211,1711883447963,-1928.129715,0.000419,14]
[321078212,1711883447973,-151.0,0.000419,14]
[321078213,1711883447982,-427.07422,0.000419,14]
[321078214,1711883447992,-205.47636628,0.000419,2]
[321078215,1711883448001,-427.07422,0.000419,14]
[321078216,1711883448010,-151.0,0.000419,14]
[321078217,1711883448020,-151.0,0.000419,14]
[321078218,1711883448029,-151.0,0.000419,14]
[321078219,1711883448038,-154.471003,0.000419,14]
[321078220,1711883448047,-151.0,0.000419,14]
[321078221,1711883448057,-151.0,0.000419,14]
[321078222,1711883448067,-151.0,0.000419,14]
[321078223,1711883448076,-151.0,0.000419,14]
[321078224,1711883448085,-165.261704,0.000419,14]
[321078225,1711883448095,-151.0,0.000419,7]
[321078226,1711883448103,-165.261704,0.000419,14]
[321078227,1711883448113,-153.517307,0.000419,14]
[321078228,1711883448122,-151.0,0.000419,14]
[321078229,1711883448131,-420.087501,0.000419,14]
[321078230,1711883448140,-154.461679,0.000419,14]
[321078231,1711883448149,-420.087501,0.000419,14]
[321078232,1711883448158,-153.698312,0.000419,14]
[321078233,1711883448168,-1620.63702716,0.00041906,2]
[321078234,1711883448177,-32825.52826133,0.0004191,2]
[321078235,1711883448187,-151.0,0.0004191,14]
[321078236,1711883448196,-151.0,0.0004191,14]
[321078237,1711883448205,-206.872401,0.0004191,14]
[321078238,1711883448214,-151.0,0.0004191,14]
[321078239,1711883448224,-161.819067,0.0004191,14]
[321078240,1711883448233,-151.0,0.0004191,14]